Cogmind - Beta 14 @@@ ROGUE MODE // 2024.09.22 @ 10:36:55 Player: Mallow Result: Destroyed by D-53 Grenadier with Mini Grenade Launcher Performance ------------- Evolutions (0) 0 Regions Visited (2) 400 Robots Destroyed (20) 100 Value Destroyed (377) 377 Prototype IDs (0) 0 Alien Tech Used (0) 0 Bonus (0) 0 TOTAL SCORE: 877 Bonus ------- None Cogmind --------- Core Integrity 0/250 Matter 248/300 Energy 100/100 System Corruption 0% Temperature Cool (0) Movement Core (200) Ox3 Location -10/Mines Parts ------- > --- POWER (1) -------- (None) > --- PROPULSION (2) --- (None) > --- UTILITY (2) ------ Medium Storage Unit > --- WEAPON (2) ------- (None) > --- INVENTORY (10) --- Light Ion Engine Structural Scanner Authchip [Propulsion] Authchip [Processor] Peak State ------------ > --- POWER ------------ Light Ion Engine > --- PROPULSION ------- Light Treads Light Treads > --- UTILITY ---------- Backup Plating I Backup Plating I > --- WEAPON ----------- Assault Rifle Rocket Launcher > --- INVENTORY -------- Light Ion Engine Medium Storage Unit Structural Scanner Authchip [Propulsion] Authchip [Processor] [Rating: 9] Favorites ----------- Power Light Ion Engine Engine Light Ion Engine Propulsion Light Treads Treads Light Treads Utility Backup Plating I Storage Medium Storage Unit Protection Backup Plating I Weapon Assault Rifle Ballistic Gun Assault Rifle Launcher Rocket Launcher Build | -11 -10 -10 ------- Run | Yrd Mat Min Slots Evolved . | . . . Power . | . . . Propulsion . | . . . Utility . | . . . Weapon . | . . . Parts Attached 16 | 6 5 5 Power 3 | 1 2 . Engine 3 | 1 2 . Core . | . . . Reactor . | . . . Propulsion 2 | 2 . . Treads 2 | 2 . . Leg . | . . . Wheel . | . . . Hover . | . . . Flight . | . . . Utility 2 | . . 2 Device . | . . . Storage 1 | . . 1 Processor . | . . . Hackware . | . . . Protection 1 | . . 1 Artifact . | . . . Weapon 9 | 3 3 3 Energy Gun . | . . . Energy Cannon . | . . . Ballistic Gun 7 | 3 3 1 Ballistic Cannon . | . . . Launcher 2 | . . 2 Special Weapon . | . . . Impact Weapon . | . . . Slashing Weapon . | . . . Piercing Weapon . | . . . Special Melee Weapon . | . . . Unidentified Prototypes . | . . . Parts Lost 8 | . . 8 Power 1 | . . 1 Propulsion 2 | . . 2 Utility 2 | . . 2 Weapon 3 | . . 3 Highest Loss Streak 8 | . . 8 To Critical Strikes . | . . . Average Slot Usage (%) 99 | . 99 98 Engine 13 | . 14 13 Treads 27 | . 28 27 Storage 1 | . . 5 Protection 26 | . 27 22 Ballistic Gun 24 | . 28 14 Launcher 3 | . . 13 Peak Build Rating 9 | 5 8 9 Average Rating 7 | 4 7 8 On Entrance 4 | . 5 8 Naked Turns . | . . . Heaviest Build 20 | 9 11 20 Greatest Support 40 | 40 40 40 Greatest Overweight (x) . | . . . Average Overweight (x) . | . . . Largest Inventory Capacity 10 | 5 5 10 Average Capacity 5 | 5 5 7 Most Carried 6 | 2 5 6 Average Carried 4 | 1 4 5 Final Capacity 10 | 5 5 10 Final Carried 5 | 2 5 4 Class Distribution -------------------- 100% | Mutant Dominant Class ---------------- Mutant | -10/Materials Mutant | -10/Mines Resources | -11 -10 -10 ----------- Run | Yrd Mat Min Matter Collected 552 | 260 272 20 Remotely . | . . . Salvage Created 522 | . 485 37 Parts 42 | . 42 . Haulers Intercepted 1 | . 1 . Recyclers Shooed 2 | . 2 . Parts Field Recycled . | . . . Retrieved Matter . | . . . Parts Self-Destructed . | . . . Prevented . | . . . Kills | -11 -10 -10 ------- Run | Yrd Mat Min Combat Hostiles Destroyed 13 | . 12 1 Guns 12 | . 12 . AOE 1 | . . 1 Classes Destroyed 8 | . 6 2 Worker 2 | . . 2 Builder 1 | . 1 . Hauler 1 | . 1 . Recycler 1 | . 1 . Watcher 2 | . 2 . Swarmer 6 | . 6 . Grunt 6 | . 6 . Demolisher 1 | . . 1 Best Kill Streak 5 | . 5 2 Combat Bots Only 4 | . 4 1 Max Kills in Single Turn 1 | . 1 1 Gunslinging . | . . . Exploded 1 | . . 1 Melee . | . . . Uniques/NPCs Destroyed . | . . . Combat | -11 -10 -10 -------- Run | Yrd Mat Min Hostile Shots Fired 87 | . 70 17 Missed 24 | . 23 1 Damage Taken 1129 | . 467 662 Core 255 | . 50 205 Absorbed by Shields . | . . . Core Remaining (%) 100 | 100 . . Volleys Fired 45 | . 38 7 Largest 2 | . 2 2 Hottest 53 | . 40 53 Shots Fired 86 | . 76 10 Gun 82 | . 76 6 Cannon . | . . . Launcher 4 | . . 4 Special . | . . . Kinetic 82 | . 76 6 Thermal . | . . . Explosive 4 | . . 4 Electromagnetic . | . . . Robot Hit Streak 8 | . 8 4 Robot Miss Streak 4 | . 4 2 Penetration Max . | . . . Secondary Targets . | . . . Shots Hit Robots 49 | . 44 5 Core Hits 31 | . 25 6 Critical Kills . | . . . Critical Parts Destroyed . | . . . Critical Strikes . | . . . Melee Attacks . | . . . Impact . | . . . Slashing . | . . . Piercing . | . . . Sneak Attacks . | . . . Combat Hostiles . | . . . Follow-up Attacks . | . . . Damage Inflicted 691 | . 550 141 Guns 573 | . 539 34 Cannons . | . . . Explosions 107 | . . 107 Melee . | . . . Ramming 11 | . 11 . Kinetic 573 | . 539 34 Thermal . | . . . Explosive 107 | . . 107 Electromagnetic . | . . . Impact . | . . . Slashing . | . . . Piercing . | . . . Highest Corruption . | . . . Average Corruption . | . . . Corruption Purged . | . . . Corruption Blocked . | . . . Overload Shots . | . . . Overflow Damage . | . . . Projectiles . | . . . Explosions . | . . . Melee . | . . . Knockbacks . | . . . Impact . | . . . Kinetic . | . . . Secondary . | . . . Self-Inflicted Damage . | . . . Shots . | . . . Rammed 4 | . 4 . Targets Rammed 4 | . 4 . Kicked . | . . . Crushed . | . . . Highest Temperature 55 | . 55 . Average Temperature 22 | . 22 . Received Heat Transfer 189 | . 189 . Siege Activations . | . . . Robots Corrupted . | . . . Combat Hostiles . | . . . Parts Fried . | . . . Impact Corruptions . | . . . Robots Melted . | . . . Combat Hostiles . | . . . Parts Melted . | . . . Heat Transferred . | . . . Parts Sabotaged . | . . . Parts Stolen . | . . . Parts Stripped . | . . . Power Chain Reactions . | . . . Alert | -11 -10 -10 ------- Run | Yrd Mat Min Peak Influence 368 | . 368 75 Initial 51 | . . 51 Average 139 | . 179 57 Maximum Alert Level 1 | . 1 . Low Security (%) 66 | 100 52 100 Level 1 33 | . 47 . Level 2 . | . . . Level 3 . | . . . Level 4 . | . . . Level 5 . | . . . High Security . | . . . Max Security . | . . . Squads Dispatched 2 | . 2 . Investigation 1 | . 1 . Extermination . | . . . Reinforcement 1 | . 1 . Assault . | . . . Garrison . | . . . Intercept . | . . . Searches Triggered . | . . . Construction Impeded . | . . . Haulers Reinforced . | . . . Active Scanning Responses . | . . . Cargo Convoy Interrupts . | . . . Stealth | -11 -10 -10 --------- Run | Yrd Mat Min Distress Signals 4 | . 3 1 Communications Jammed . | . . . Distress Signals . | . . . Times Spotted 28 | . 26 2 Peak Tracking Total 5 | . 5 2 Tactical Retreats 3 | . 3 . Traps | -11 -10 -10 ------- Run | Yrd Mat Min Traps Triggered 1 | . 1 . Indirectly . | . . . Trap Hack Attempts . | . . . Triggered . | . . . Disarmed . | . . . Reprogrammed . | . . . Reused . | . . . Traps Extracted . | . . . Installed . | . . . Triggered . | . . . Machines | -11 -10 -10 ---------- Run | Yrd Mat Min Machines Disabled . | . . . Max in Single Turn . | . . . Machines Repaired . | . . . Machines Dismantled . | . . . Machines Sabotaged . | . . . Overloaded Fab Kills . | . . . Hacking | -11 -10 -10 --------- Run | Yrd Mat Min Machines Accessed 5 | . 5 . Terminals 2 | . 2 . Fabricators . | . . . Repair Stations 1 | . 1 . Recycling Units 2 | . 2 . Scanalyzers . | . . . Garrison Access . | . . . Total Hacks 13 | . 13 . Successful 6 | . 6 . Failed 7 | . 7 . Catastrophic . | . . . Database Lockouts . | . . . Manual . | . . . Terminals 9 | . 9 . Fabricators . | . . . Repair Stations 1 | . 1 . Recycling Units 3 | . 3 . Scanalyzers . | . . . Garrison Access . | . . . Terminal Hacks 4 | . 4 . Emergency Access Points 1 | . 1 . Terminal Index 1 | . 1 . Locate Traps 1 | . 1 . Transport Status 1 | . 1 . Fabricator Hacks . | . . . Repair Station Hacks 1 | . 1 . Refit 1 | . 1 . Recycling Unit Hacks 1 | . 1 . Retrieve Components 1 | . 1 . Scanalyzer . | . . . Garrison Access Hacks . | . . . Unauthorized Hacks . | . . . Terminals . | . . . Fabricators . | . . . Repair Stations . | . . . Recycling Units . | . . . Scanalyzers . | . . . Garrison Access . | . . . Data Cores Recovered . | . . . Used . | . . . Hacking Detections 3 | . 3 . Full Trace Events . | . . . Feedback Events . | . . . Feedback Blocked . | . . . Robot Schematics Acquired . | . . . Robots Built . | . . . Authchips . | . . . Time . | . . . Total Robot Build Rating . | . . . Part Schematics Acquired . | . . . Parts Built . | . . . Authchips . | . . . Time . | . . . Total Part Build Rating . | . . . Parts Repaired . | . . . Time . | . . . Parts Recycled . | . . . Recycled Matter . | . . . Retrieved Matter . | . . . Retrieved Components 1 | . 1 . Parts Scanalyzed . | . . . Part Schematics Acquired . | . . . Parts Damaged . | . . . Bothacking | -11 -10 -10 ------------ Run | Yrd Mat Min Used RIF Installer . | . . . Robots Hacked . | . . . Non-combat . | . . . Combat . | . . . Robot Hacks Applied . | . . . Relay Couplers Released . | . . . Fabnet Peak Effective % . | . . . Robots Rewired . | . . . Allies Hacked . | . . . Hacks Repelled . | . . . Allies | -11 -10 -10 -------- Run | Yrd Mat Min Total Allies . | . . . Largest Group . | . . . Highest-Rated Group . | . . . Highest-Rated Ally . | . . . Total Orders . | . . . Ally Attacks . | . . . Total Damage . | . . . Kills . | . . . Allies Corrupted . | . . . Allies Melted . | . . . Intel | -11 -10 -10 ------- Run | Yrd Mat Min Robot Analysis Total . | . . . Derelict Logs Recovered . | . . . Drone Launches . | . . . Drone Recoveries . | . . . Exploration | -11 -10 -10 ------------- Run | Yrd Mat Min Turns Passed 1378 | 80 961 337 Spaces Moved 735 | 46 495 194 Core 3 | 3 . . Treads 732 | 43 495 194 Legs . | . . . Wheels . | . . . Hover . | . . . Flight . | . . . Fastest Speed 50 | 50 160 160 Average Speed 159 | 152 160 160 Slowest Speed 160 | 160 160 160 Overloaded Moves . | . . . Propulsion Burnouts . | . . . Robots Hopped . | . . . Cave-ins Triggered . | . . . Exploration Rate (%) 29 | 5 66 16 Regions Visited 2 Branch Regions 1 Pre-discovered Areas . | . . . Known Exits Taken . | . . . Unknown Exits Taken 2 | 1 1 . Scrap Searched . | . . . Spaces Dug 22 | . . 22 Terrain Destroyed 32 | . . 32 Melee . | . . . Projectile . | . . . AOE 32 | . . 32 Terrain Rammed . | . . . Walls Destroyed . | . . . Machines Disabled . | . . . Actions | -11 -10 -10 --------- Run | Yrd Mat Min Total 852 | 53 589 210 Wait 34 | . 34 . Move 733 | 45 494 194 Hop . | . . . Pick Up 10 | 2 6 2 Fast Attach 8 | 5 2 1 Attach 3 | . . 3 Detach . | . . . Swap 5 | 1 3 1 Drop 10 | . 8 2 Fire 45 | . 38 7 Melee . | . . . Ram . | . . . Kick . | . . . Crush 4 | . 4 . Escape Stasis . | . . . Rewire . | . . . Trap . | . . . Miscellaneous . | . . . Route ------- -11/Scrapyard -10/Materials -10/Mines History --------- Turn | Location | Event 18 | -11/Scrapyard | Discovered new exit (range 16) 81 | -11/Scrapyard | Entered Materials 254 | -10/Materials | Discovered new exit (range 7) 311 | -10/Materials | Build established: Mutant 1042 | -10/Materials | Entered Mines 1049 | -10/Mines | Received a Rocket Launcher from a helpful Derelict 1145 | -10/Mines | Assembled infested the area 1368 | -10/Mines | Core integrity fell below 50% 1378 | -10/Mines | Core integrity fell below 20% 1379 | -10/Mines | Destroyed by D-53 Grenadier with Mini Grenade Launcher Last Messages --------------- The unstable cave ceiling collapses. Backup Plating I destroyed. The unstable cave ceiling collapses. Assault Rifle destroyed. K-01 Serf collects debris. Lgt. Ion Engine destroyed. Lgt. Treads destroyed. The unstable cave ceiling collapses. K-01 Serf collects debris. The unstable cave ceiling collapses. K-01 Serf destroyed. The unstable cave ceiling collapses. Backup Plating I destroyed. The unstable cave ceiling collapses. D-53 Grenadier destroyed. Rocket Launcher destroyed. The unstable cave ceiling collapses. Assault Rifle destroyed. The unstable cave ceiling collapses. Lgt. Treads destroyed. Map ----- +----------------------------------------------------+ | | | | | ?????????????????????????????????????????????????? | | ?????????????????????????????????????????????????? | | ?????????????????????????????????????????????????? | | ?????????????????????????????????????????????????? | | ?????????????????????????????????????????????????? | | ??????????????????????????????????????????+??????? | | ???????????????????????????????????????? ?? ????? | | ??????????????????????????????????????## ? ???? | | ?????????????????????????????????????? ## ????? | | ?######??????????????????????????????? ?????? | | ?# ##????????????????????????????? ??????? | | ?### ###############??????????????? ???????? | | ?# #??????????????? ????????? | | ?# ######### ## #??????????????? #????????? | | ?# #???????# ## #?????????????? #????????? | | ?## ###???????# ## #?????????????? #????????? | | ?# ##???????# ## #?????????????? ##???????? | | ?# #???????# ## #?????????##### #???????? | | ?# ######### ## ########### #???????? | | ?# ## # # # #####???? | | ?## ########## # | | ??# ##????????## ########?? | | ??# # ##?????????# ### #????????? | | ??#####??????????# @ d ##?? #????????? | | ?????????????????## #???? ???????? | | ??????????????????# #???? ??????? | | ??????????????????## ##?????####?????? | | ???????????????????## # #???????????????? | | ????????????????????######## #???????????????? | | ???????????????????????????## ##???????????????? | | ????????????????????????????#####????????????????? | | ?????????????????????????????????????????????????? | | ?????????????????????????????????????????????????? | | ?????????????????????????????????????????????????? | | ?????????????????????????????????????????????????? | | ?????????????????????????????????????????????????? | | ?????????????????????????????????????????????????? | | ?????????????????????????????????????????????????? | | ?????????????????????????????????????????????????? | | ?????????????????????????????????????????????????? | | ?????????????????????????????????????????????????? | | ?????????????????????????????????????????????????? | | ?????????????????????????????????????????????????? | | ?????????????????????????????????????????????????? | | ?????????????????????????????????????????????????? | | ?????????????????????????????????????????????????? | | ?????????????????????????????????????????????????? | | ?????????????????????????????????????????????????? | +----------------------------------------------------+ Best States ------------- Heat Dissipation 25 Energy Generation 10 Energy Capacity 250 Matter Stores 300 Matter Capacity 300 Sight Range 16 Terrain Scan Density 10 Armor Coverage 160 Evasion (%) 40 Recoil Reduction 2 Authchip Count 2 Item Schematics ----------------- None Robot Schematics ------------------ None Fabricated ------------ Nothing Alien Tech Used ----------------- None Achievements -------------- None Challenges ------------ None Game ------ Seed NodeControlNetwork Manual? 0 Play Time 00:11:19 Cumulative 31.0 hours Start 2024.09.22 @ 10:25:34 End 2024.09.22 @ 10:36:55 Sessions 1 Manual Loads 0 Difficulty Rogue Special Mode None Game No. 57 Rogue 57 Adventurer 0 Explorer 0 Win Type - Total 0 Types 0/0/0/0/0/0/0/0/0 Lore% 13 Gallery% 31 Achievement% 23 Wizard Run 0 Options --------- Layout 0 ASCII 0 Keyboard 0 Movement Arrows Keybinds 0 Fullscreen 2 Font 24/Smallcaps Map View 56x25 Zoom Use 71% Tactical HUD 0 Map Filters NONE Filters NONE Steam 1 RUN: f836b13d-ba94-4039-9c59-8b299a3d6f37